bitfinex-derivatives/quotes_BNBF0:USTF0_20260110
["timestamp","ask_amount","ask_price","bid_price","bid_amount"]
[1768067341824,0.19122981,910.54,909.27,0.69439038]
[1768067342125,0.19122981,910.54,909.28,0.69439038]
[1768067342325,0.19122981,910.54,909.29,0.69439038]
[1768067342528,0.19122981,910.54,909.3,0.69439038]
[1768067342836,0.19122981,910.54,909.31,0.69439038]
[1768067343035,0.19122981,910.54,909.32,0.69439038]
[1768067343228,0.19122981,910.54,909.33,0.69439038]
[1768067343424,0.19122981,910.54,909.34,0.69439038]
[1768067343624,0.19122981,910.54,909.35,0.69439038]
[1768067343929,0.19122981,910.54,909.23,1.427]
[1768067344231,0.19122981,910.54,909.24,0.69427609]
[1768067344426,0.19122981,910.54,909.25,0.69427609]
[1768067344737,0.19122981,910.54,909.26,0.69427609]
[1768067344926,0.19122981,910.54,909.27,0.69427609]
[1768067345126,0.19122981,910.54,909.28,0.69427609]
[1768067345431,0.19122981,910.54,909.29,0.69427609]
[1768067345636,0.19122981,910.54,909.3,0.69427609]
[1768067345936,0.19122981,910.54,909.31,0.69427609]
[1768067346128,0.19122981,910.54,909.32,0.69427609]
[1768067346331,0.19122981,910.54,909.33,0.69427609]
[1768067346529,0.19122981,910.54,909.34,0.69427609]
[1768067346729,0.19122981,910.54,909.23,1.427]
[1768067346934,0.19122981,910.54,909.24,0.69390514]
[1768067347128,0.19122981,910.54,909.25,0.69390514]
[1768067347328,0.19122981,910.54,909.26,0.69390514]
[1768067347532,0.19122981,910.54,909.27,0.69390514]
[1768067347730,0.19122981,910.54,909.28,0.69390514]
[1768067348032,0.19122981,910.54,909.29,0.69390514]
[1768067348232,0.19122981,910.54,909.3,0.69390514]
[1768067348533,0.19122981,910.54,909.31,0.69390514]
[1768067348732,0.19122981,910.54,909.32,0.69390514]
[1768067349037,0.19122981,910.54,909.33,0.69390514]
[1768067349232,0.19122981,910.54,909.34,0.69390514]
[1768067349436,0.19122981,910.54,909.23,1.427]
[1768067349732,0.19122981,910.54,909.24,0.6938376]
[1768067349934,0.19122981,910.54,909.25,0.6938376]
[1768067350140,0.19122981,910.54,909.26,0.6938376]
[1768067350331,0.19122981,910.54,909.27,0.6938376]
[1768067350536,0.19122981,910.54,909.28,0.6938376]
[1768067350733,0.19122981,910.54,909.29,0.6938376]
[1768067350935,0.19122981,910.54,909.3,0.6938376]
[1768067351135,0.19122981,910.54,909.31,0.6938376]
[1768067351336,0.19122981,910.54,909.32,0.6938376]
[1768067351543,0.19122981,910.54,909.33,0.6938376]
[1768067351732,0.19122981,910.54,909.34,0.6938376]
[1768067351942,0.19122981,910.54,909.05,0.82523978]
[1768067352137,0.19122981,910.54,909.06,0.69379582]
[1768067352335,0.19122981,910.54,909.07,0.69379582]
[1768067352538,0.19122981,910.54,909.08,0.69379582]
[1768067352738,0.19122981,910.54,909.09,0.69379582]
[1768067352936,0.19122981,910.54,909.1,0.69379582]
[1768067353238,0.19122981,910.54,909.11,0.69379582]
[1768067353541,0.19122981,910.54,909.12,0.69379582]
[1768067353742,0.19122981,910.54,909.13,0.69379582]
[1768067353937,0.19122981,910.54,909.16,0.82523978]
[1768067354140,0.19122981,910.54,909.17,0.69379582]
[1768067354337,0.19122981,910.54,909.18,0.69379582]
[1768067354541,0.19122981,910.54,909.19,0.69379582]
[1768067354738,0.19122981,910.54,909.2,0.69379582]
[1768067355036,0.19122981,910.54,909.21,0.69379582]
[1768067355237,0.19122981,910.54,909.22,0.69379582]
[1768067355438,0.19122981,910.54,909.23,0.69379582]
[1768067355640,0.19122981,910.54,909.24,0.69379582]
[1768067355838,0.19122981,910.54,909.25,0.69379582]
[1768067356038,0.19122981,910.54,909.26,0.69379582]
[1768067356239,0.19122981,910.54,909.27,0.69379582]
[1768067356439,0.19122981,910.54,909.28,0.69379582]
[1768067356743,0.19122981,910.54,909.29,0.69379582]
[1768067357038,0.19122981,910.54,909.3,0.69379582]
[1768067357343,0.19122981,910.54,909.31,0.69379582]
[1768067357542,0.19122981,910.54,909.32,0.69379582]
[1768067357736,0.19122981,910.54,909.33,0.69379582]
[1768067357939,0.19122981,910.54,909.34,0.69379582]
[1768067358140,0.19122981,910.54,909.35,0.69379582]
[1768067358337,0.19122981,910.54,909.36,0.69379582]
[1768067358540,0.19122981,910.54,909.21,1.89]
[1768067358541,0.19122981,910.54,909.37,0.69379582]
[1768067358740,0.19122981,910.54,909.38,0.69379582]
[1768067358943,0.19122981,910.54,909.39,0.69379582]
[1768067359142,0.19122981,910.54,909.4,0.69379582]
[1768067359342,0.19122981,910.54,909.41,0.69379582]
[1768067359542,0.19122981,910.54,909.42,0.69379582]
[1768067359742,0.19122981,910.54,909.43,0.69379582]
[1768067359944,0.19122981,910.54,909.44,0.69379582]
[1768067360141,0.19122981,910.54,909.45,0.69379582]
[1768067360345,0.19122981,910.54,909.21,1.89]
[1768067360643,0.19122981,910.54,909.22,0.69366748]
[1768067360844,0.19122981,910.54,909.23,0.69366748]
[1768067361045,0.19122981,910.54,909.24,0.69366748]
[1768067361248,0.19122981,910.54,909.25,0.69366748]
[1768067361448,0.19122981,910.54,909.26,0.69366748]
[1768067361651,0.19122981,910.54,909.27,0.69366748]
[1768067361848,0.19122981,910.54,909.28,0.69366748]
[1768067362050,0.19122981,910.54,909.29,0.69366748]
[1768067362347,0.19122981,910.54,909.3,0.69366748]
[1768067362548,0.19122981,910.54,909.31,0.69366748]
[1768067362750,0.19122981,910.54,909.32,0.69366748]
[1768067362947,0.19122981,910.54,909.33,0.69366748]
[1768067363150,0.19122981,910.54,909.34,0.69366748]
[1768067363351,0.19122981,910.54,909.35,0.69366748]
[1768067363553,0.19122981,910.54,909.36,0.69366748]
[1768067363751,0.19122981,910.54,909.37,0.69366748]
[1768067363953,0.19122981,910.54,909.38,0.69366748]
[1768067364154,0.19122981,910.54,909.39,0.69366748]
[1768067364454,0.19122981,910.54,909.4,0.69366748]
[1768067364661,0.19122981,910.54,909.41,0.69366748]
[1768067364857,0.19122981,910.54,909.42,0.69366748]
[1768067365152,0.19122981,910.54,909.43,0.69366748]
[1768067365354,0.19122981,910.54,909.21,1.89]
[1768067365556,0.19122981,910.54,909.22,0.69370553]
[1768067365758,0.19122981,910.54,909.23,0.69370553]
[1768067365954,0.19122981,910.54,909.24,0.69370553]
[1768067366156,0.19122981,910.54,909.25,0.69370553]
[1768067366453,0.19122981,910.54,909.26,0.69370553]
[1768067366653,0.19122981,910.54,909.27,0.69370553]
[1768067366954,0.19122981,910.54,909.28,0.69370553]
[1768067367154,0.19122981,910.54,909.29,0.69370553]
[1768067367353,0.19122981,910.54,909.3,0.69370553]
[1768067367553,0.19122981,910.54,909.31,0.69370553]
[1768067367757,0.19122981,910.54,909.32,0.69370553]
[1768067368057,0.19122981,910.54,909.33,0.69370553]
[1768067368256,0.19122981,910.54,909.34,0.69370553]
[1768067368557,0.19122981,910.54,909.35,0.69370553]
[1768067368858,0.19122981,910.54,909.36,0.69370553]
[1768067369054,0.19122981,910.54,909.37,0.69370553]
[1768067369258,0.19122981,910.54,909.38,0.69370553]
[1768067369458,0.19122981,910.54,909.39,0.69370553]
[1768067369659,0.19122981,910.54,909.4,0.69370553]
[1768067369854,0.19122981,910.54,909.41,0.69370553]
[1768067370158,0.19122981,910.54,909.42,0.69370553]
[1768067370353,0.19122981,910.54,909.43,0.69370553]
[1768067370559,0.19122981,910.54,909.44,0.69370553]
[1768067370756,0.19122981,910.54,909.45,0.69370553]
[1768067370959,0.19122981,910.54,909.46,0.69370553]
[1768067371259,0.19122981,910.54,909.21,1.89]
[1768067371456,0.19122981,910.54,909.22,0.69428937]
[1768067371659,0.19122981,910.54,909.23,0.69428937]
[1768067371959,0.19122981,910.54,909.24,0.69428937]
[1768067372159,0.19122981,910.54,909.25,0.69428937]
[1768067372358,0.19122981,910.54,909.26,0.69428937]
[1768067372656,0.19122981,910.54,909.27,0.69428937]
[1768067372857,0.19122981,910.54,909.28,0.69428937]
[1768067373058,0.19122981,910.54,909.29,0.69428937]
[1768067373255,0.19122981,910.54,909.3,0.69428937]
[1768067373457,0.19122981,910.54,909.31,0.69428937]
[1768067373756,0.19122981,910.54,909.32,0.69428937]
[1768067373956,0.19122981,910.54,909.33,0.69428937]
[1768067374157,0.19122981,910.54,909.34,0.69428937]
[1768067374359,0.19122981,910.54,909.35,0.69428937]
[1768067374558,0.19122981,910.54,909.36,0.69428937]
[1768067374757,0.19122981,910.54,909.37,0.69428937]
[1768067374956,0.19122981,910.54,909.38,0.69428937]
[1768067375158,0.19122981,910.54,909.39,0.69428937]
[1768067375370,0.19122981,910.54,909.4,0.69428937]
[1768067375563,0.19122981,910.54,909.41,0.69428937]
[1768067375760,0.19122981,910.54,909.42,0.69428937]
[1768067375966,0.19122981,910.54,909.43,0.69428937]
[1768067376162,0.19122981,910.54,909.44,0.69428937]
[1768067376364,0.19122981,910.54,909.45,0.69428937]
[1768067376666,0.19122981,910.54,909.46,0.69428937]
[1768067376867,0.19122981,910.54,909.47,0.69428937]
[1768067377066,0.19122981,910.54,909.48,0.69428937]
[1768067377263,0.19122981,910.54,909.49,0.69428937]
[1768067377469,0.19122981,910.54,909.5,0.69428937]
[1768067377665,0.19122981,910.54,909.21,2.71523978]
[1768067377865,0.19122981,910.54,909.22,0.69627992]
[1768067378064,0.19122981,910.54,909.23,0.69627992]
[1768067378269,0.19122981,910.54,909.24,0.69627992]
[1768067378570,0.19122981,910.54,909.25,0.69627992]
[1768067378770,0.19122981,910.54,909.26,0.69627992]
[1768067378972,0.19122981,910.54,909.27,0.69627992]
[1768067379172,0.19122981,910.54,909.28,0.69627992]
[1768067379366,0.19122981,910.54,909.29,0.69627992]
[1768067379566,0.19122981,910.54,909.3,0.69627992]
[1768067379772,0.19122981,910.54,909.31,0.69627992]
[1768067379968,0.19122981,910.54,909.32,0.69627992]
[1768067380172,0.19122981,910.54,909.33,0.69627992]
[1768067380372,0.19122981,910.54,909.34,0.69627992]
[1768067380572,0.19122981,910.54,909.35,0.69627992]
[1768067380774,0.19122981,910.54,909.36,0.69627992]
[1768067380974,0.19122981,910.54,909.37,0.69627992]
[1768067381175,0.19122981,910.54,909.38,0.69627992]
[1768067381370,0.19122981,910.54,909.39,0.69627992]
[1768067381573,0.19122981,910.54,909.4,0.69627992]
[1768067381771,0.19122981,910.54,909.41,0.69627992]
[1768067381974,0.19122981,910.54,909.42,0.69627992]
[1768067382272,0.19122981,910.54,909.43,0.69627992]
[1768067382478,0.19122981,910.54,909.44,0.69627992]
[1768067382672,0.19122981,910.54,909.45,0.69627992]
[1768067382879,0.19122981,910.54,909.46,0.69627992]
[1768067383079,0.19122981,910.54,909.47,0.69627992]
[1768067383273,0.19122981,910.54,909.48,0.69627992]
[1768067383474,0.19122981,910.54,909.49,0.69627992]
[1768067383676,0.19122981,910.54,909.5,0.69627992]
[1768067383874,0.19122981,910.54,909.51,0.69627992]
[1768067384078,0.19122981,910.54,909.21,1.89]
[1768067384279,0.19122981,910.54,909.22,0.69663848]
[1768067384585,0.19122981,910.54,909.23,0.69663848]
[1768067384774,0.19122981,910.54,909.24,0.69663848]
[1768067384972,0.19122981,910.54,909.25,0.69663848]
[1768067385175,0.19122981,910.54,909.26,0.69663848]
[1768067385473,0.19122981,910.54,909.21,1.89]
[1768067385474,0.19122981,910.54,909.27,0.69663848]
[1768067385675,0.19122981,910.54,909.28,0.69663848]
[1768067385878,0.19122981,910.54,909.29,0.69663848]
[1768067386078,0.19122981,910.54,909.3,0.69663848]
[1768067386374,0.19122981,910.54,909.31,0.69663848]
[1768067386579,0.19122981,910.54,909.32,0.69663848]
[1768067386776,0.19122981,910.54,909.33,0.69663848]
[1768067386976,0.19122981,910.54,909.34,0.69663848]
[1768067387185,0.19122981,910.54,909.35,0.69663848]
[1768067387386,0.19122981,910.54,909.36,0.69663848]
[1768067387581,0.19122981,910.54,909.37,0.69663848]
[1768067387877,0.19122981,910.54,909.38,0.69663848]
[1768067388175,0.19122981,910.54,909.39,0.69663848]
[1768067388377,0.19122981,910.54,909.4,0.69663848]
[1768067388575,0.19122981,910.54,909.41,0.69663848]
[1768067388776,0.19122981,910.54,909.42,0.69663848]
[1768067388980,0.19122981,910.54,909.43,0.69663848]
[1768067389177,0.19122981,910.54,909.21,1.89]
[1768067389383,0.19122981,910.54,909.22,0.69666423]
[1768067389578,0.19122981,910.54,909.23,0.69666423]
[1768067389879,0.19122981,910.54,909.24,0.69666423]
[1768067390080,0.19122981,910.54,909.25,0.69666423]
[1768067390278,0.19122981,910.54,909.26,0.69666423]
[1768067390482,0.19122981,910.54,909.27,0.69666423]
[1768067390680,0.19122981,910.54,909.28,0.69666423]
[1768067390980,0.19122981,910.54,909.29,0.69666423]
[1768067391191,0.19122981,910.54,909.3,0.69666423]
[1768067391384,0.19122981,910.54,909.31,0.69666423]
[1768067391584,0.19122981,910.54,909.32,0.69666423]
[1768067391886,0.19122981,910.54,909.33,0.69666423]
[1768067392081,0.19122981,910.54,909.34,0.69666423]
[1768067392286,0.19122981,910.54,909.35,0.69666423]
[1768067392581,0.19122981,910.54,909.21,1.89]
[1768067392582,0.19122981,910.54,909.36,0.69666423]
[1768067392782,0.19122981,910.54,909.37,0.69666423]
[1768067393086,0.19122981,910.54,909.38,0.69666423]
[1768067393383,0.19122981,910.54,909.39,0.69666423]
[1768067393584,0.19122981,910.54,909.4,0.69666423]
[1768067393785,0.19122981,910.54,909.41,0.69666423]
[1768067393986,0.19122981,910.54,909.42,0.69666423]
[1768067394184,0.19122981,910.54,909.43,0.69666423]
[1768067394390,0.19122981,910.54,909.44,0.69666423]
[1768067394584,0.19122981,910.54,909.45,0.69666423]
[1768067394787,0.19122981,910.54,909.46,0.69666423]
[1768067394986,0.19122981,910.54,909.47,0.69666423]
[1768067395183,0.19122981,910.54,909.48,0.69666423]
[1768067395385,0.19122981,910.54,909.49,0.69666423]
[1768067395588,0.19122981,910.54,909.5,0.69666423]
[1768067395784,0.19122981,910.54,909.51,0.69666423]
[1768067395996,0.19122981,910.54,909.52,0.69666423]
[1768067396188,0.19122981,910.54,909.53,0.69666423]
[1768067396390,0.19122981,910.54,909.54,0.69666423]
[1768067396588,0.19122981,910.54,909.25,0.82586429]
[1768067396788,2.72679797,910.99,909.26,0.69666502]
[1768067396988,2.72679797,910.99,909.27,0.69666502]
[1768067397189,0.19123453,910.22,909.28,0.69666502]
[1768067397387,2.72679797,910.99,909.29,0.69666502]
[1768067397588,0.19123296,910.11,909.3,0.69666502]
[1768067397789,0.19123296,910.11,909.31,0.69666502]
[1768067397988,2.72679797,910.99,909.32,0.69666502]
[1768067398197,0.19123191,910.11,909.33,0.69666502]
[1768067398391,2.72679797,910.99,909.34,0.69666502]
[1768067398690,0.19123033,910.11,909.35,0.69666502]
[1768067398897,2.72679797,910.99,909.36,0.69666502]
[1768067399091,2.72679797,910.99,909.37,0.69666502]
[1768067399389,0.19122928,910.11,909.38,0.69666502]
[1768067399597,2.72679797,910.99,909.39,0.69666502]
[1768067399797,0.19122823,910.59,909.4,0.69666502]
[1768067400090,0.19122823,910.59,909.41,0.69666502]
[1768067400298,0.19122823,910.59,909.42,0.69666502]
[1768067400495,0.19122823,910.59,909.43,0.69666502]
[1768067400691,0.19122823,910.59,909.44,0.69666502]
[1768067400892,0.19122823,910.59,909.45,0.69666502]
[1768067401097,0.19122823,910.59,909.46,0.69666502]
[1768067401297,0.19122823,910.59,909.47,0.69666502]
[1768067401492,0.19122823,910.59,909.48,0.69666502]
[1768067401797,0.19122823,910.59,909.49,0.69666502]
[1768067401999,0.19122823,910.59,909.5,0.69666502]
[1768067402200,0.19122823,910.59,909.51,0.69666502]
[1768067402399,0.19122823,910.59,909.52,0.69666502]
[1768067402605,0.19122823,910.59,909.53,0.69666502]
[1768067402800,0.19122823,910.59,909.54,0.69666502]
[1768067403001,0.19122823,910.59,909.33,2.182]
[1768067403201,0.19122823,910.59,909.34,0.69670526]
[1768067403409,0.19122823,910.59,909.35,0.69670526]
[1768067403702,0.19122823,910.59,909.36,0.69670526]
[1768067403901,0.19122823,910.59,909.33,2.182]
[1768067403902,0.19122823,910.59,909.37,0.69670526]
[1768067404111,0.19122823,910.59,909.38,0.69670526]
[1768067404404,0.19122823,910.59,909.39,0.69670526]
[1768067404611,0.19122823,910.59,909.4,0.69670526]
[1768067404910,0.19122823,910.59,909.41,0.69670526]
[1768067405108,0.19122823,910.59,909.42,0.69670526]
[1768067405309,0.19122823,910.59,909.43,0.69670526]
[1768067405601,0.19122823,910.59,909.44,0.69670526]
[1768067405811,0.19122823,910.59,909.45,0.69670526]
[1768067406001,0.19122823,910.59,909.46,0.69670526]
[1768067406202,0.19122823,910.59,909.47,0.69670526]
[1768067406403,0.19122823,910.59,909.48,0.69670526]
[1768067406706,0.19122823,910.59,909.49,0.69670526]
[1768067406904,0.19122823,910.59,909.5,0.69670526]
[1768067407109,0.19122823,910.59,909.51,0.69670526]
[1768067407407,0.19122823,910.59,909.52,0.69670526]
[1768067407605,0.19122823,910.59,909.53,0.69670526]
[1768067407806,0.19122823,910.59,909.33,2.182]
[1768067408005,0.19122823,910.59,909.34,0.69613609]
[1768067408206,0.19122823,910.59,909.35,0.69613609]
[1768067408405,0.19122823,910.59,909.36,0.69613609]
[1768067408607,0.19122823,910.59,909.33,2.182]
[1768067408608,0.19122823,910.59,909.37,0.69613609]
[1768067408803,0.19122823,910.59,909.38,0.69613609]
[1768067409005,0.19122823,910.59,909.39,0.69613609]
[1768067409207,0.19122823,910.59,909.4,0.69613609]
[1768067409408,0.19122823,910.59,909.41,0.69613609]
[1768067409613,0.19122823,910.59,909.42,0.69613609]
[1768067409906,0.19122823,910.59,909.43,0.69613609]
[1768067410105,0.19122823,910.59,909.44,0.69613609]
[1768067410314,0.19122823,910.59,909.45,0.69613609]
[1768067410508,0.19122823,910.59,909.46,0.69613609]
[1768067410707,0.19122823,910.59,909.47,0.69613609]
[1768067410908,0.19122823,910.59,909.48,0.69613609]
[1768067411109,0.19122823,910.59,909.49,0.69613609]
[1768067411307,0.19122823,910.59,909.5,0.69613609]
[1768067411506,0.19122823,910.59,909.51,0.69613609]
[1768067411704,0.19122823,910.59,909.52,0.69613609]
[1768067411907,0.19122823,910.59,909.53,0.69613609]
[1768067412208,0.19122823,910.59,909.33,2.182]
[1768067412407,0.19122823,910.59,909.34,0.69613582]
[1768067412607,0.19122823,910.59,909.35,0.69613582]
[1768067412910,0.19122823,910.59,909.36,0.69613582]
[1768067413210,0.19122823,910.59,909.37,0.69613582]
[1768067413509,0.19122823,910.59,909.38,0.69613582]
[1768067413705,0.19122823,910.59,909.39,0.69613582]
[1768067413907,0.19122823,910.59,909.4,0.69613582]
[1768067414108,0.19122823,910.59,909.33,2.182]
[1768067414109,0.19122823,910.59,909.41,0.69613582]
[1768067414310,0.19122823,910.59,909.42,0.69613582]
[1768067414605,0.19122823,910.59,909.43,0.69613582]
[1768067414806,0.19122823,910.59,909.44,0.69613582]
[1768067415007,0.19122823,910.59,909.45,0.69613582]
[1768067415204,0.19122823,910.59,909.46,0.69613582]
[1768067415407,0.19122823,910.59,909.47,0.69613582]
[1768067415607,0.19122823,910.59,909.48,0.69613582]
[1768067415807,0.19122823,910.59,909.49,0.69613582]
[1768067416107,0.19122823,910.59,909.5,0.69613582]
[1768067416409,0.19122823,910.59,909.51,0.69613582]
[1768067416606,0.19122823,910.59,909.52,0.69613582]
[1768067416810,0.19122823,910.59,909.33,2.182]
[1768067417011,0.19122823,910.59,909.34,0.69603812]
[1768067417211,0.19122823,910.59,909.35,0.69603812]
[1768067417411,0.19122823,910.59,909.36,0.69603812]
[1768067417612,0.19122823,910.59,909.37,0.69603812]
[1768067417810,0.19122823,910.59,909.38,0.69603812]
[1768067418015,0.19122823,910.59,909.39,0.69603812]
[1768067418211,0.19122823,910.59,909.4,0.69603812]
[1768067418415,0.19122823,910.59,909.41,0.69603812]
[1768067418614,0.19122823,910.59,909.42,0.69603812]
[1768067418911,0.19122823,910.59,909.43,0.69603812]
[1768067419115,0.19122823,910.59,909.44,0.69603812]
[1768067419311,0.19122823,910.59,909.45,0.69603812]
[1768067419611,0.19122823,910.59,909.46,0.69603812]
[1768067419811,0.19122823,910.59,909.47,0.69603812]
[1768067420013,0.19122823,910.59,909.48,0.69603812]
[1768067420216,0.19122823,910.59,909.49,0.69603812]
[1768067420412,0.19122823,910.59,909.5,0.69603812]
[1768067420619,0.19122823,910.59,909.51,0.69603812]
[1768067420915,0.19122823,910.59,909.52,0.69603812]
[1768067421214,0.19122823,910.59,909.33,2.182]
[1768067421418,0.19122823,910.59,909.34,0.69598968]
[1768067421713,0.19122823,910.59,909.35,0.69598968]
[1768067421913,0.19122823,910.59,909.36,0.69598968]
[1768067422118,0.19122823,910.59,909.37,0.69598968]
[1768067422318,0.19122823,910.59,909.38,0.69598968]
[1768067422514,0.19122823,910.59,909.39,0.69598968]
[1768067422715,0.19122823,910.59,909.4,0.69598968]
[1768067422916,0.19122823,910.59,909.41,0.69598968]
[1768067423118,0.19122823,910.59,909.42,0.69598968]
[1768067423415,0.19122823,910.59,909.43,0.69598968]
[1768067423616,0.19122823,910.59,909.44,0.69598968]
[1768067423815,0.19122823,910.59,909.45,0.69598968]
[1768067424016,0.19122823,910.59,909.46,0.69598968]
[1768067424217,0.19122823,910.59,909.47,0.69598968]
[1768067424520,0.19122823,910.59,909.48,0.69598968]
[1768067424720,0.19122823,910.59,909.49,0.69598968]
[1768067424916,0.19122823,910.59,909.33,2.182]
[1768067424917,0.19122823,910.59,909.5,0.69598968]
[1768067425118,0.19122823,910.59,909.51,0.69598968]
[1768067425322,0.19122823,910.59,909.52,0.69598968]
[1768067425623,0.19122823,910.59,909.33,2.182]
[1768067425822,0.19122823,910.59,909.34,0.69596829]
[1768067426019,0.19122823,910.59,909.35,0.69596829]
[1768067426222,0.19122823,910.59,909.36,0.69596829]
[1768067426421,0.19122823,910.59,909.37,0.69596829]
[1768067426722,0.19122823,910.59,909.38,0.69596829]
[1768067426921,0.19122823,910.59,909.39,0.69596829]
[1768067427118,0.19122823,910.59,909.4,0.69596829]
[1768067427320,0.19122823,910.59,909.41,1.52183258]
[1768067427522,0.19122823,910.59,909.42,1.52183258]
[1768067427718,0.19122823,910.59,909.43,0.69596829]
[1768067427918,0.19122823,910.59,909.44,0.69596829]
[1768067428221,0.19122823,910.59,909.45,0.69596829]
[1768067428524,0.19122823,910.59,909.46,0.69596829]
[1768067428722,0.19122823,910.59,909.47,0.69596829]
[1768067428924,0.19122823,910.59,909.48,0.69596829]
[1768067429123,0.19122823,910.59,909.49,0.69596829]
[1768067429319,0.19122823,910.59,909.5,0.69596829]
[1768067429620,0.19122823,910.59,909.51,0.69596829]
[1768067429922,0.19122823,910.59,909.52,0.69596829]
[1768067430119,0.19122823,910.59,909.53,0.69596829]
[1768067430324,0.19122823,910.59,909.54,0.69596829]
[1768067430623,0.19122823,910.59,909.38,0.82586429]
[1768067430624,0.19122823,910.59,909.55,0.69596829]
[1768067430820,0.19122823,910.59,909.56,0.69596829]
[1768067431021,0.19122823,910.59,909.57,0.69596829]
[1768067431326,0.19122823,910.59,909.58,0.69596829]
[1768067431521,0.19122823,910.59,909.59,0.69596829]
[1768067431721,0.19122823,910.59,909.6,0.69596829]
[1768067431926,0.19122823,910.59,909.61,0.69596829]
[1768067432126,0.19122823,910.59,909.62,0.69596829]
[1768067432323,0.19122823,910.59,909.63,0.69596829]
[1768067432622,0.19122823,910.59,909.64,2.43396829]
[1768067432827,0.19122823,910.59,909.65,0.69596829]
[1768067433126,0.19122823,910.59,909.64,1.738]
[1768067433320,0.19122823,910.59,909.65,0.69410443]
[1768067433525,0.19122823,910.59,909.64,1.738]
[1768067433724,0.19122823,910.59,909.65,0.69399772]
[1768067433923,0.19122823,910.59,909.64,1.738]
[1768067454236,0.19122823,910.59,909.65,0.69360839]
[1768067454440,0.19122823,910.59,909.64,1.738]
[1768067454637,0.19122823,910.59,909.65,0.69360828]
[1768067454840,0.19122823,910.59,909.64,1.738]
[1768067455039,0.19122823,910.59,909.65,0.69360839]
[1768067455240,0.19122823,910.59,909.64,1.738]
[1768067455437,0.19122823,910.59,909.65,0.69364961]
[1768067455636,0.19122823,910.59,909.64,1.738]
[1768067455940,0.19122823,910.59,909.65,0.69364961]
[1768067456138,0.19122823,910.59,909.64,1.738]
[1768067456340,0.19122823,910.59,909.65,0.69364961]
[1768067456641,0.19122823,910.59,909.64,1.738]
[1768067456838,0.19122823,910.59,909.65,0.69369763]
[1768067457038,0.19122823,910.59,909.64,1.738]
[1768067457241,0.19122823,910.59,909.65,0.69369763]
[1768067457440,0.19122823,910.59,909.64,1.738]
[1768067457737,0.19122823,910.59,909.65,0.69375298]
[1768067457939,0.19122823,910.59,909.64,1.738]
[1768067458137,0.19122823,910.59,909.65,0.69375298]
[1768067458435,0.19122823,910.59,909.66,0.69381618]
[1768067458640,0.19122823,910.59,909.64,1.738]
[1768067458838,0.19122823,910.59,909.65,0.69381618]
[1768067459042,0.19122823,910.59,909.66,0.69381618]
[1768067459238,0.19122823,910.59,909.64,1.738]
[1768067459442,0.19122823,910.59,909.65,0.69387383]
[1768067459641,0.19122823,910.59,909.66,0.69387383]
[1768067459843,0.19122823,910.59,909.64,1.738]
[1768067460039,0.19122823,910.59,909.65,0.69387389]
[1768067460343,0.19122823,910.59,909.66,0.69387389]
[1768067460644,0.19122823,910.59,909.64,1.738]
[1768067460844,0.19122823,910.59,909.65,0.69392165]
[1768067461139,0.19122823,910.59,909.66,0.69392165]
[1768067461343,0.19122823,910.59,909.67,0.69399473]
[1768067461543,0.19122823,910.59,909.64,1.738]
[1768067461843,0.19122823,910.59,909.65,0.69399473]
[1768067462044,0.19122823,910.59,909.66,0.69399473]
[1768067462239,0.19122823,910.59,909.67,0.69399473]
[1768067462447,0.19122823,910.59,909.64,1.738]
[1768067462642,0.19122823,910.59,909.65,0.69407708]
[1768067462845,0.19122823,910.59,909.66,0.69407708]
[1768067463145,0.19122823,910.59,909.67,0.69407708]
[1768067463345,0.19122823,910.59,909.68,0.69407708]
[1768067463540,0.19122823,910.59,909.64,1.738]
[1768067463742,0.19122823,910.59,909.65,0.69417023]
[1768067463947,0.19122823,910.59,909.66,0.69417023]
[1768067464147,0.19122823,910.59,909.64,1.738]
[1768067464348,0.19122823,910.59,909.65,0.69418837]
[1768067464544,0.19122823,910.59,909.66,0.69418837]
[1768067464744,0.19122823,910.59,909.64,1.738]
[1768067464949,0.19122823,910.59,909.65,0.69427485]
[1768067465248,0.19122823,910.59,909.66,0.69427485]
[1768067465448,0.19122823,910.59,909.64,1.738]
[1768067465644,0.19122823,910.59,909.65,0.69396649]
[1768067465947,0.19122823,910.59,909.66,0.69396649]
[1768067466148,0.19122823,910.59,909.64,1.738]
[1768067466349,0.19122823,910.59,909.65,0.69396638]
[1768067466549,0.19122823,910.59,909.66,0.69396638]
[1768067466747,0.19122823,910.59,909.67,0.69396638]
[1768067466947,0.19122823,910.59,909.64,1.738]
[1768067467147,0.19122823,910.59,909.65,0.69410205]
[1768067467345,0.19122823,910.59,909.66,0.69410205]
[1768067467549,0.19122823,910.59,909.67,0.69410205]
[1768067467750,0.19122823,910.59,909.68,0.69410205]
[1768067468050,0.19122823,910.59,909.64,1.738]
[1768067468251,0.19122823,910.59,909.65,0.69425919]
[1768067468450,0.19122823,910.59,909.66,0.69425919]
[1768067468647,0.19122823,910.59,909.67,0.69425919]
[1768067468851,0.19122823,910.59,909.68,0.69425919]
[1768067469048,0.19122823,910.59,909.69,0.69425919]
[1768067469252,0.19122823,910.59,909.7,0.69467484]
[1768067469552,0.19122823,910.59,909.64,1.738]